fUSD/lending_fUSD_20250216
["ID","MTS","AMOUNT","RATE_DAILY","PERIOD"]
[353270485,1739728232366,-849.8483,8.851e-05,2]
[353270486,1739728232375,-330.6067,8.973e-05,2]
[353270487,1739728232385,-150.0,9e-05,2]
[353270488,1739728232395,-150.0,9e-05,2]
[353270489,1739728232404,-381.31769397,9.3e-05,2]
[353270490,1739728232420,-18061.99986608,9.3e-05,2]
[353270491,1739728232491,-5456.68243995,9.3e-05,2]
[353270492,1739728232502,-1781.66,9.3e-05,2]
[353270493,1739728232511,-150.0,9.333e-05,2]
[353270494,1739728232521,-163.56,9.47e-05,2]
[353270495,1739728232530,-2000.0,9.632e-05,2]
[353270496,1739728232540,-150.0,9.667e-05,2]
[353270497,1739728232549,-181.12,9.695e-05,2]
[353270498,1739728232559,-200.0,9.719e-05,2]
[353270499,1739728232568,-150.0,9.899e-05,2]
[353270500,1739728232578,-3016.41677003,9.9e-05,2]
[353270501,1739728232589,-27849.58213943,9.9e-05,2]
[353270510,1739728238112,-13781.40426998,9.9e-05,2]
[353270511,1739728238165,-1567.45664719,9.9e-05,2]
[353270512,1739728238177,-154499.15610083,9.9e-05,2]
[353270513,1739728238187,-500.0,9.973e-05,2]
[353270514,1739728238196,-500.0,9.973e-05,2]
[353270515,1739728238207,-200.0,9.983e-05,2]
[353270516,1739728238216,-200.0,9.998e-05,2]
[353270517,1739728238226,-500.0,9.999e-05,2]
[353270518,1739728238235,-28566.19222957,0.0001,2]
[353270519,1739728238251,-400071.1418119,0.0001,2]
[353270520,1739728238276,-1998.33255008,0.0001,2]
[353270521,1739728238384,-3600.0,0.0001,2]
[353270522,1739728238396,-6337.06,0.0001,2]
[353270592,1739728240409,-9754.06386023,0.0001,2]
[353270599,1739728243264,-411.545,0.0001,2]
[353270610,1739728246250,-341.95908273,0.0001,2]
[353270611,1739728246262,-1240.7222775,0.0001,2]
[353270612,1739728246304,-4706.11589993,0.0001,2]
[353270613,1739728246360,-13873.80416535,0.0001,2]
[353270614,1739728320076,636.5,8.261e-05,2]
[353270620,1739728378145,194.56864723,0.00020129,120]
[353270621,1739728379064,194.56864723,0.00020129,120]
[353270622,1739728386170,192.0,8.261e-05,3]
[353270623,1739729218138,-302.9424,8.836e-05,2]
[353270624,1739729218159,-952.0805,8.851e-05,2]
[353270625,1739729218180,-200.0,8.979e-05,2]
[353270626,1739729218200,-200.0,9.166e-05,2]
[353270627,1739729218221,-181.14023265,9.268e-05,2]
[353270628,1739729218240,-165.89,9.269e-05,2]
[353270629,1739729218261,-305.83,9.307e-05,2]
[353270630,1739729218280,-2000.0,9.41e-05,2]
[353270631,1739729218302,-574.48039059,9.41e-05,2]
[353270632,1739729354890,659.3,8.219e-05,2]
[353270642,1739729431438,-520.0,9.295e-05,2]
[353270643,1739729431448,-269.29,9.342e-05,2]
[353270644,1739729431457,-200.0,9.412e-05,2]
[353270645,1739729431470,-1000.0,9.436e-05,2]
[353270646,1739729431481,-218.16,9.477e-05,2]
[353270647,1739729431490,-166.66,9.711e-05,2]
[353270648,1739729431500,-1115.96497671,9.762e-05,2]
[353270649,1739729431512,-684.04122533,9.762e-05,2]
[353270650,1739729431548,-22099.99379796,9.762e-05,2]
[353270651,1739729431558,-1830.81855933,9.762e-05,2]
[353270652,1739729431567,-1485.3,9.83e-05,2]
[353270653,1739729431576,-1830.81855932,9.83e-05,2]
[353270654,1739729431586,-5363.0,9.973e-05,2]
[353270655,1739729431595,-165.08914327,9.973e-05,2]
[353270656,1739729431604,-500.0,9.973e-05,2]
[353270657,1739729431613,-163.02342878,9.973e-05,2]
[353270658,1739729431623,-500.0,9.973e-05,2]
[353270659,1739729431633,-387.25,9.988e-05,2]
[353270660,1739729431642,-150.0,9.998e-05,2]
[353270661,1739729431653,-2117.888,9.999e-05,2]
[353270662,1739729431663,-154.359,9.999e-05,2]
[353270663,1739729431672,-542.44079569,9.999e-05,2]
[353270664,1739729431681,-433.15786735,9.999e-05,2]
[353270665,1739729431691,-500.0,9.999e-05,2]
[353270666,1739729431700,-500.0,9.999e-05,2]
[353270667,1739729431709,-441.0744725,9.999e-05,2]
[353270668,1739729431719,-40799.9641411,0.0001,2]
[353270669,1739729431730,-5785.77617514,0.0001,2]
[353270670,1739729431752,-692.5626787,0.0001,2]
[353270671,1739729431768,-412.75,0.0001,2]
[353270672,1739729431779,-586.69855898,0.0001,2]
[353270673,1739729431796,-67039.6047972,0.0001,2]
[353270674,1739729431807,-3100.0,0.0001,2]
[353270675,1739729431818,-1000.0,0.0001,2]
[353270677,1739729431829,-3081.97164808,0.0001,2]
[353270679,1739729431840,-29932.55788102,0.0001,2]
[353270716,1739729437358,-211.740101,9.9e-05,2]
[353270717,1739729437368,-10337.56981201,0.0001,2]
[353270718,1739729437417,-389.35733865,0.0001,2]
[353270719,1739729437430,-3341.98188124,0.0001,2]
[353270720,1739729437441,-953.30203135,0.0001,2]
[353270721,1739729437469,-18608.42834453,0.0001,2]
[353270722,1739729437522,-3872.71484479,0.0001,2]
[353270723,1739729437533,-5332.36394306,0.0001,2]
[353270724,1739729437576,-12017.23207939,0.0001,2]
[353270733,1739729439620,-5432.46171585,0.0001,2]
[353270734,1739729439822,-974.12804299,0.0001,2]
[353270735,1739729439876,-1651.33394559,0.0001,2]
[353270736,1739729439887,-379.5927873,0.0001,2]
[353270741,1739729442591,-2247.8920004,0.0001,2]
[353270742,1739729442643,-25582.17311311,0.0001,2]
[353270743,1739729442782,-10164.91804653,0.0001,2]
[353270761,1739729445372,-99377.0,0.0001,2]
[353270762,1739729445384,-1087.23851416,0.0001,2]
[353270763,1739729445425,-1967458.39783974,0.0001,2]
[353270764,1739729445435,-441.29123305,0.0001,2]
[353270765,1739729445444,-184.50906007,0.0001,2]
[353270766,1739729445454,-180.23916766,0.0001,2]
[353270767,1739729445463,-336.19257896,0.0001,2]
[353270768,1739729445473,-406.30848458,0.0001,2]
[353270769,1739729445486,-575.99131,0.0001,2]
[353270770,1739729445496,-166.66,0.00010032,2]
[353270771,1739729445505,-311.91,0.00010103,2]
[353270772,1739729445515,-250.0,0.00010108,2]
[353270773,1739729445524,-153.19,0.00010137,2]
[353270774,1739729445534,-467.87,0.00010137,2]
[353270775,1739729445544,-334.63,0.0001019,2]
[353270776,1739729445554,-500.0,0.00010229,2]
[353270777,1739729445564,-150.0,0.00010276,2]
[353270778,1739729445574,-200.0,0.00010276,2]
[353270779,1739729445583,-416.96859791,0.00010297,2]
[353270780,1739729445592,-200.0,0.00010327,2]
[353270781,1739729445602,-166.66,0.00010352,2]
[353270782,1739729445611,-659.3,0.00010447,2]
[353270783,1739729445621,-3492.64,0.00010475,2]
[353270784,1739729445631,-999.99,0.00010475,2]
[353270785,1739729445641,-9999.99,0.00010475,2]
[353270786,1739729445650,-500.0,0.00010521,2]
[353270787,1739729445659,-1000.0,0.00010521,2]
[353270788,1739729445669,-180.14,0.00010583,2]
[353270789,1739729445679,-1000.0,0.00010615,2]
[353270790,1739729445688,-416.96859791,0.00010629,2]
[353270791,1739729445698,-20316.7178069,0.00010664,2]
[353270792,1739729445707,-166.66,0.00010673,2]
[353270793,1739729445716,-416.96859791,0.00010748,2]
[353270794,1739729445725,-500.0,0.00010799,2]
[353270795,1739729445734,-131205.9735212,0.000108,2]
[353270796,1739729445743,-500.0,0.00010936,2]
[353270797,1739729445753,-190.09480713,0.00010951,2]
[353270798,1739729445763,-500.0,0.00010958,2]
[353270799,1739729445772,-500.0,0.00010958,2]
[353270800,1739729445781,-500.0,0.00010958,2]
[353270801,1739729445791,-500.0,0.00010958,2]
[353270802,1739729445801,-287.30715022,0.00010958,2]
[353270803,1739729445810,-256.62893501,0.00010958,2]
[353270804,1739729445820,-192.16140064,0.00010958,2]
[353270805,1739729445830,-254.58906154,0.00010958,2]
[353270806,1739729445839,-184.43920862,0.00010958,2]
[353270807,1739729445848,-500.0,0.00010958,2]
[353270808,1739729445858,-500.0,0.00010958,2]
[353270809,1739729445867,-500.0,0.00010958,2]
[353270810,1739729445877,-378.48701001,0.00010958,2]
[353270811,1739729445886,-500.0,0.00010958,2]
[353270812,1739729445896,-638.09909068,0.00010958,2]
[353270813,1739729445906,-816.78,0.00010959,2]
[353270814,1739729445915,-500.0,0.00010964,2]
[353270815,1739729445925,-500.0,0.00010964,2]
[353270816,1739729445934,-500.0,0.00010964,2]
[353270817,1739729445944,-166.66,0.00010993,2]
[353270818,1739729445953,-255.0,0.00010998,2]
[353270819,1739729445962,-269.86,0.00011,2]
[353270820,1739729445971,-500.0,0.00011041,2]
[353270821,1739729445981,-500.0,0.00011073,2]
[353270822,1739729445990,-272.77299991,0.00011099,2]
[353270823,1739729446000,-379.18677336,0.00011099,2]
[353270824,1739729446010,-416.96859794,0.00011117,2]
[353270825,1739729446020,-500.0,0.00011123,2]
[353270826,1739729446029,-500.0,0.00011205,2]
[353270827,1739729446039,-500.0,0.0001121,2]
[353270828,1739729446049,-387.25,0.00011236,2]
[353270829,1739729446058,-500.0,0.00011287,2]
[353270830,1739729446068,-166.66,0.00011314,2]
[353270831,1739729446077,-500.0,0.00011347,2]
[353270832,1739729446086,-500.0,0.00011369,2]
[353270833,1739729446095,-500.0,0.00011452,2]
[353270834,1739729446104,-500.0,0.00011484,2]
[353270835,1739729446114,-291.05,0.00011507,2]
[353270836,1739729446123,-379.18677336,0.00011521,2]
[353270837,1739729446132,-500.0,0.00011534,2]
[353270838,1739729446142,-569.0,0.00011541,2]
[353270839,1739729446152,-638.0,0.00011541,2]
[353270840,1739729446162,-500.0,0.00011616,2]
[353270841,1739729446171,-500.0,0.00011621,2]
[353270842,1739729446182,-500.0,0.00011698,2]
[353270843,1739729446191,-500.0,0.00011758,2]
[353270844,1739729446202,-849.0,0.00011767,2]
[353270845,1739729446211,-500.0,0.0001178,2]
[353270846,1739729446221,-1000.0,0.00011795,2]
[353270847,1739729446231,-500.0,0.00011863,2]
[353270848,1739729446240,-333.16380352,0.00011864,2]
[353270849,1739729446249,-500.0,0.00011895,2]
[353270850,1739729446258,-250.0,0.00011904,2]
[353270851,1739729446268,-500.0,0.00011945,2]
[353270852,1739729446278,-500.0,0.00012027,2]
[353270853,1739729446288,-592.68,0.00012032,2]
[353270854,1739729446298,-379.18677336,0.00012062,2]
[353270855,1739729446307,-500.0,0.00012109,2]
[353270856,1739729446316,-500.0,0.00012191,2]
[353270857,1739729446325,-500.0,0.00012273,2]
[353270858,1739729446335,-500.0,0.00012334,2]
[353270859,1739729446345,-500.0,0.00012334,2]
[353270860,1739729446354,-500.0,0.00012356,2]
[353270861,1739729446364,-575.99131,0.000124,2]
[353270862,1739729446374,-624.07079056,0.00012438,2]
[353270863,1739729446388,-1060.0,0.00012457,2]
[353270864,1739729446397,-387.25,0.00012485,2]
[353270865,1739729446407,-379.18677336,0.00012602,2]
[353270866,1739729446416,-659.3,0.00012675,2]
[353270867,1739729446426,-775.59,0.00012877,2]
[353270868,1739729446436,-1000.0,0.00012974,2]
[353270869,1739729446445,-550.0,0.00013,2]
[353270870,1739729446455,-379.18677336,0.00013143,2]
[353270871,1739729446464,-300.0,0.00013151,2]
[353270872,1739729446478,-150.0,0.00013151,2]
[353270873,1739729446488,-150.0,0.00013315,2]
[353270874,1739729446498,-500.0,0.00013397,2]
[353270875,1739729446507,-379.18677336,0.00013683,2]
[353270876,1739729446517,-1865.37,0.00013698,3]
[353270877,1739729446527,-1412.7,0.00013699,2]
[353270878,1739729446536,-435.74,0.00013699,2]
[353270879,1739729446545,-200.0,0.00013699,2]
[353270880,1739729446555,-500.0,0.00013699,2]
[353270881,1739729446565,-500.0,0.00013704,2]
[353270882,1739729446574,-387.25,0.00013733,2]
[353270883,1739729446583,-1485.3,0.00013761,2]
[353270884,1739729446594,-4000.0,0.00013774,2]
[353270885,1739729446604,-1865.37,0.00013972,3]
[353270886,1739729446614,-3501.0,0.00014,5]
[353270887,1739729446625,-35858.18216115,0.00014,2]
[353270888,1739729446635,-15735.83364801,0.00014,2]
[353270889,1739729446646,-1000.0,0.00014154,2]
[353270890,1739729446655,-379.18677336,0.00014224,2]
[353270891,1739729446665,-1865.37,0.00014246,3]
[353270892,1739729446676,-264.98043741,0.0001429,7]
[353270893,1739729446688,-152.0,0.00014428,3]
[353270894,1739729446697,-905.2728218,0.00014503,2]
[353270895,1739729446706,-1865.37,0.0001452,3]
[353270896,1739729446716,-877.31,0.00014521,2]
[353270897,1739729446726,-150.0,0.00014585,2]
[353270898,1739729446735,-2789.70716225,0.000146,2]
[353270899,1739729446745,-300.0,0.00014625,2]
[353270900,1739729446755,-150.0,0.00014675,2]
[353270901,1739729446764,-300.0,0.00014679,2]
[353270902,1739729446773,-500.0,0.00014682,2]
[353270903,1739729446783,-9996.93424846,0.000147,2]
[353270904,1739729446793,-150.0,0.00014704,2]
[353270905,1739729446803,-150.0,0.00014731,2]
[353270906,1739729446812,-60606.58276786,0.00014742,2]
[353270907,1739729446821,-245592.49605169,0.0001475,2]
[353270908,1739729446832,-150.0,0.0001476,2]
[353270909,1739729446841,-175.24938405,0.00014764,2]
[353270910,1739729446851,-379.18677336,0.00014764,2]
[353270911,1739729446860,-1111.79642214,0.00014764,2]
[353270912,1739729446870,-203.11346132,0.00014764,2]
[353270913,1739729446880,-150.52938731,0.00014775,2]
[353270914,1739729446889,-150.0,0.00014784,2]
[353270915,1739729446904,-12869.4056471,0.00014789,2]
[353270916,1739729446913,-4249.8753975,0.00014789,2]
[353270917,1739729446922,-213.2668143,0.00014789,2]
[353270918,1739729446931,-521.8108696,0.00014789,2]
[353270919,1739729446941,-11228.7712387,0.0001479,2]
[353270920,1739729446951,-3708.0872217,0.0001479,2]
[353270921,1739729446961,-213.2668143,0.0001479,2]
[353270922,1739729446971,-453.9832058,0.0001479,2]
[353270923,1739729446981,-406.30848458,0.0001479,2]
[353270924,1739729446990,-406.30848458,0.0001479,2]
[353270925,1739729447000,-1865.37,0.00014794,3]
[353270926,1739729447010,-1973.16,0.00014795,2]
[353270927,1739729447020,-439.06,0.00014795,2]
[353270928,1739729447030,-300.0,0.00014795,2]
[353270929,1739729447040,-150.0,0.00014795,2]
[353270930,1739729447050,-300.0,0.00014795,2]
[353270931,1739729447059,-439.06,0.00014795,2]
[353270932,1739729447068,-439.06,0.00014795,2]
[353270933,1739729447078,-1000.0,0.00014799,2]
[353270934,1739729447088,-300.0,0.00014799,2]
[353270935,1739729447098,-668.57353053,0.00014799,2]
[353270936,1739729447108,-457.55327038,0.000148,2]
[353270937,1739729447118,-615054.447663,0.000148,3]
[353270938,1739729447128,-3447629.33312824,0.000148,2]
[353270939,1739729447143,-1452.0,0.000148,2]
[353270940,1739729447154,-425.055151,0.000148,2]
[353270941,1739729447166,-598.62832,0.000148,2]
[353270942,1739729447178,-605.35909844,0.000148,2]
[353270943,1739729447190,-487.49166506,0.000148,2]
[353270949,1739730533179,630.48,8.412e-05,2]
[353270971,1739730631647,-996.94,8.973e-05,2]
[353270972,1739730631705,-3347.97,8.973e-05,2]
[353270973,1739730631716,-5163.90525654,8.973e-05,2]
[353270974,1739730631727,-5695.5,8.973e-05,2]
[353270975,1739730631738,-208.77614346,8.973e-05,2]
[353270976,1739730631748,-200.0,9.452e-05,2]
[353270977,1739730631758,-200.0,9.803e-05,2]
[353270978,1739730631767,-200.0,9.87e-05,2]
[353270979,1739730631777,-3235.69535518,9.932e-05,2]
[353270980,1739730631818,-461.9386228,9.932e-05,2]
[353270981,1739730631827,-167.28748573,9.973e-05,2]
[353270982,1739730631837,-277.54422906,9.973e-05,2]
[353270983,1739730631849,-454.34473033,9.973e-05,2]
[353270984,1739730631861,-45.65526967,9.973e-05,2]
[353270985,1739730631870,-150.0,9.999e-05,2]
[353270986,1739730631883,-182.0217411,9.999e-05,2]
[353270987,1739730631893,-4636.94094363,0.0001,2]
[353270988,1739730631904,-543.86946,0.0001,2]
[353270989,1739730631929,-4053.23995282,0.0001,2]
[353271458,1739730637491,-5358.2942163,0.0001,2]
[353271459,1739730637505,-3950.78390254,0.0001,2]
[353271460,1739730637551,-2336.68164723,0.0001,2]
[353271461,1739730637668,-41727.51242078,0.0001,2]
[353271462,1739730637681,-47089.23180688,0.0001,2]
[353271463,1739730637784,-2817.00043207,0.0001,2]
[353271464,1739730637797,-836.74827687,0.0001,2]
[353271465,1739730637812,-4757.94082179,0.0001,2]
[353271481,1739730639690,-188733.13007258,0.0001,2]
[353271482,1739730639750,-267.44,0.0001,2]
[353271483,1739730639866,-1692.04651401,0.0001,2]
[353271484,1739730641764,-1421.0750025,0.0001,2]
[353271558,1739730642659,-84035.572544,0.0001,2]
[353271566,1739730642771,-12613.62489683,0.0001,2]
[353271598,1739730645552,-627.30863152,0.0001,2]
[353271600,1739730645609,-1069.38236066,0.0001,2]
[353271601,1739730645621,-643190.40265482,0.0001,2]
[353271602,1739730645663,-626.10000023,0.0001,2]
[353271603,1739730645675,-676.30000084,0.0001,2]
[353271604,1739730645720,-3028.97898497,0.0001,2]
[353271605,1739730645731,-4191.08835462,0.0001,2]
[353271608,1739730894209,207.91101159,0.00020154,120]
[353271609,1739730895173,207.91101158,0.00020154,120]
[353271610,1739730896262,207.91101158,0.00020154,120]
[353271611,1739730897484,207.91101158,0.00020154,120]
[353271612,1739730898199,207.91101158,0.00020154,120]
[353271613,1739730899724,207.91101158,0.00020154,120]
[353271614,1739730900183,207.91101158,0.00020154,120]
[353271615,1739730901739,207.91101158,0.00020154,120]
[353271616,1739730902183,207.91101158,0.00020154,120]
[353271617,1739730903189,207.91101158,0.00020154,120]
[353271618,1739731698358,879.61,8.819e-05,2]
[353271621,1739731810926,640.41,8.219e-05,2]
[353271630,1739731831930,-150.0,9e-05,2]
[353271631,1739731831940,-212.55546901,9e-05,2]
[353271632,1739731831949,-150.0,9e-05,2]
[353271633,1739731831959,-200.0,9.022e-05,2]
[353271634,1739731831969,-111.18453099,9.043e-05,2]
[353271635,1739731831981,-188.81546901,9.043e-05,2]
[353271636,1739731831990,-400.19471004,9.044e-05,2]
[353271637,1739731832044,-19668.0,9.044e-05,2]
[353271641,1739731837793,-3831.80528996,9.044e-05,2]
[353271642,1739731837803,-62.953765,9.083e-05,2]
[353271643,1739731837905,-360.026235,9.083e-05,2]
[353271644,1739731837916,-200.0,9.157e-05,2]
[353271645,1739731837926,-943.42,9.323e-05,2]
[353271646,1739731837935,-736.77,9.323e-05,2]
[353271647,1739731837949,-150.0,9.333e-05,2]
[353271648,1739731837959,-162.71,9.469e-05,2]
[353271650,1739731837969,-151.05552507,9.557e-05,2]
[353271662,1739731839839,-1136.66447493,9.557e-05,2]
[353271663,1739731839849,-150.0,9.667e-05,2]
[353271664,1739731839859,-1000.0,9.676e-05,2]
[353271665,1739731839869,-150.0,9.699e-05,2]
[353271666,1739731839880,-1500.0,9.731e-05,2]
[353271667,1739731839896,-517.16,9.775e-05,2]
[353271668,1739731839907,-2090.288,9.8e-05,2]
[353271669,1739731839917,-154.359,9.8e-05,2]
[353271670,1739731839926,-686.81,9.813e-05,2]
[353271671,1739731839935,-2000.0,9.85e-05,2]
[353271672,1739731839945,-500.0,9.886e-05,2]
[353271673,1739731839954,-200.0,9.9e-05,2]
[353271674,1739731839964,-3831.80472554,9.922e-05,2]
[353271675,1739731839973,-3831.80472554,9.923e-05,2]
[353271676,1739731839983,-10784.34023629,9.928e-05,2]
[353271677,1739731839994,-10784.34023629,9.947e-05,2]
[353271678,1739731840004,-3831.80472554,9.961e-05,2]
[353271679,1739731840013,-10784.34023629,9.962e-05,2]
[353271680,1739731840023,-10784.34023629,9.967e-05,2]
[353271681,1739731840032,-3831.80472554,9.969e-05,2]
[353271682,1739731840045,-517.149428,9.973e-05,2]
[353271683,1739731840055,-197.68728205,9.973e-05,2]
[353271684,1739731840065,-162.71,9.995e-05,2]
[353271685,1739731840075,-1683.99,9.999e-05,2]
[353271686,1739731840084,-1203.72502334,9.999e-05,2]
[353271687,1739731840094,-150.0,9.999e-05,2]
[353271688,1739731840104,-1302269.71452429,0.0001,2]
[353271689,1739731840113,-4036492.32416709,0.0001,2]
[353271690,1739731840125,-151729.98515454,0.0001,2]
[353271708,1739731843915,-1337.54574271,0.0001,2]
[353271709,1739731843927,-159878.552592,0.0001,2]
[353271710,1739731843975,-1938.6818734,0.0001,2]
[353271711,1739731843986,-839.6050817,0.0001,2]
[353271712,1739731844030,-760.97740209,0.0001,2]
[353271713,1739731844091,-35695.66247055,0.0001,2]
[353271714,1739731844103,-92015.39454852,0.0001,2]
[353271721,1739731845757,-103057.24765466,0.0001,2]
[353271840,1739733032295,-13789.4863,9.318e-05,2]
[353271841,1739733038025,-10110.5137,9.318e-05,2]
[353271842,1739733038036,-200.0,9.369e-05,2]
[353271843,1739733038047,-487.63,9.421e-05,2]
[353271844,1739733038056,-964.57,9.436e-05,2]
[353271845,1739733038067,-200.0,9.447e-05,2]
[353271846,1739733038076,-500.0,9.562e-05,2]
[353271847,1739733038087,-2402.92417582,9.562e-05,2]
[353271848,1739733038096,-1037.7,9.81e-05,2]
[353271849,1739733038105,-1000.0,9.818e-05,2]
[353271850,1739733038114,-962.52,9.818e-05,2]
[353271851,1739733038123,-2000.0,9.835e-05,2]
[353271852,1739733038132,-1500.0,9.87e-05,2]
[353271853,1739733038142,-1989.012,9.877e-05,2]
[353271854,1739733038152,-154.359,9.877e-05,2]
[353271855,1739733038162,-2000.0,9.877e-05,2]
[353271856,1739733038171,-181.12,9.901e-05,2]
[353271857,1739733038180,-3842.73210694,9.91e-05,2]
[353271861,1739733040109,-7014.70949163,9.91e-05,2]
[353271862,1739733040121,-334.21349985,9.91e-05,2]
[353271863,1739733043226,-9554.15158154,9.91e-05,2]
[353271864,1739733043235,-150.0,9.999e-05,2]
[353271865,1739733043245,-130.83261373,0.0001,2]
[353271866,1739733043283,-2927.43250806,0.0001,2]
[353271867,1739733043294,-642.84999967,0.0001,2]
[353271868,1739733043305,-553.69999999,0.0001,2]
[353272048,1739733045948,-1968.8047725,0.0001,2]
[353272050,1739733045963,-322.37100017,0.0001,2]
[353272980,1739733851332,155.69042735,8.791e-05,2]
[353272981,1739733851357,877.94830765,8.791e-05,2]
[353272984,1739733984043,756.16,8.219e-05,2]
[353272986,1739733992532,1056.9,8.343e-05,2]
[353273027,1739734107778,375.62784241,7.888e-05,2]
[353273034,1739734176338,746.38,8.337e-05,2]
[353273045,1739734238177,-302.9424,8.836e-05,2]
[353273046,1739734238187,-200.0,8.844e-05,2]
[353273047,1739734238196,-181.12,8.897e-05,2]
[353273048,1739734238206,-435.91,9.011e-05,2]
[353273049,1739734238216,-181.14023265,9.011e-05,2]
[353273050,1739734238225,-574.48039059,9.011e-05,2]
[353273051,1739734238236,-435.91,9.013e-05,2]
[353273052,1739734238246,-435.91,9.015e-05,2]
[353273053,1739734238255,-150.0,9.017e-05,2]
[353273054,1739734238264,-435.91,9.018e-05,2]
[353273055,1739734238273,-480.92,9.018e-05,2]
[353273056,1739734238283,-299.99,9.018e-05,2]
[353273057,1739734238293,-697.48,9.018e-05,2]
[353273058,1739734238303,-999.99,9.018e-05,2]
[353273059,1739734238316,-6128.97,9.018e-05,2]
[353273060,1739734238326,-1359.62,9.018e-05,2]
[353273061,1739734238335,-150.99,9.018e-05,2]
[353273062,1739734238344,-653.6238331,9.018e-05,2]
[353273063,1739734238357,-9346.3661669,9.018e-05,2]
[353273064,1739734238366,-150.99,9.018e-05,2]
[353273065,1739734238375,-435.91,9.02e-05,2]
[353273066,1739734238385,-3729.92,9.02e-05,2]
[353273067,1739734238395,-852.98,9.02e-05,2]
[353273068,1739734238404,-435.91,9.022e-05,2]
[353273069,1739734238414,-435.91,9.025e-05,2]
[353273070,1739734238423,-435.91,9.027e-05,2]
[353273071,1739734238433,-435.91,9.03e-05,2]
[353273072,1739734238442,-435.91,9.032e-05,2]
[353273074,1739734238452,-435.91,9.034e-05,2]
[353273076,1739734238461,-435.91,9.037e-05,2]
[353273077,1739734238471,-435.91,9.039e-05,2]
[353273078,1739734238480,-435.91,9.042e-05,2]
[353273079,1739734238489,-435.91,9.044e-05,2]
[353273080,1739734238498,-435.91,9.046e-05,2]
[353273081,1739734238507,-435.91,9.049e-05,2]
[353273082,1739734238516,-435.91,9.051e-05,2]
[353273083,1739734238525,-435.91,9.053e-05,2]
[353273084,1739734238534,-435.91,9.056e-05,2]
[353273085,1739734238544,-250.0,9.08e-05,2]
[353273086,1739734238554,-159.41,9.092e-05,2]
[353273087,1739734238563,-172.67,9.131e-05,2]
[353273088,1739734238573,-1905.74,9.202e-05,2]
[353273089,1739734238582,-180.49,9.229e-05,2]
[353273090,1739734238592,-1056.9,9.385e-05,2]
[353273091,1739734238602,-305.83,9.39e-05,2]
[353273092,1739734238611,-150.0,9.4e-05,2]
[353273093,1739734238620,-500.0,9.452e-05,2]
[353273094,1739734238630,-515.12074004,9.719e-05,2]
[353273095,1739734238639,-200.0,9.719e-05,2]
[353273096,1739734238648,-200.0,9.719e-05,2]
[353273097,1739734238658,-150.0,9.736e-05,2]
[353273098,1739734238667,-180.49,9.741e-05,2]
[353273099,1739734238676,-445.17975064,9.828e-05,2]
[353273100,1739734238687,-500.0,9.864e-05,2]
[353273101,1739734238696,-255.0,9.918e-05,2]
[353273102,1739734238706,-2000.0,9.956e-05,2]
[353273103,1739734238715,-448.32482545,9.999e-05,2]
[353273104,1739734238725,-182.0217411,9.999e-05,2]
[353273105,1739734238734,-27975.2036855,0.0001,2]
[353273106,1739734238750,-22334.53961753,0.0001,2]
[353273108,1739734240223,-443317.3508603,0.0001,2]
[353273109,1739734240232,-441.96209879,0.0001,2]
[353273110,1739734240242,-214.68585395,0.0001,2]
[353273111,1739734240252,-500.23343998,0.0001,2]
[353273112,1739734240261,-200.0,0.0001,2]
[353273113,1739734240271,-107395.15864672,0.0001,2]
[353273114,1739734240280,-2000.0,0.0001,2]
[353273115,1739734240290,-97159.92390784,0.0001,2]
[353273116,1739734240300,-2355.8899,0.0001,2]
[353273117,1739734240314,-213678.16502371,0.0001,2]
[353273118,1739734240323,-6981.45010481,0.0001,2]
[353273119,1739734240333,-531.83563486,0.0001,2]
[353273120,1739734240342,-200.0,0.0001,2]
[353273121,1739734240354,-501.59,0.0001,2]